bitfinex-derivatives/quotes_SOLF0:USTF0_20260210
["timestamp","ask_amount","ask_price","bid_price","bid_amount"]
[1770684467288,4.38142435,86.389,86.343,2.3628124]
[1770684467591,4.38142435,86.389,86.35,5.79511697]
[1770684469381,4.38142435,86.389,86.35,3.43230457]
[1770684470084,4.38142435,86.389,86.34,3.43230457]
[1770684472485,4.42992145,86.379,86.33,3.43230457]
[1770684472889,4.42992145,86.379,86.331,2.44061494]
[1770684473186,4.42992145,86.379,86.34,3.43230457]
[1770684473391,4.42992145,86.379,86.341,2.44061494]
[1770684474985,4.42992145,86.379,86.33,3.43230457]
[1770684476688,4.42992145,86.379,86.332,10.4313]
[1770684478590,4.42992145,86.379,86.332,12.92377333]
[1770684478791,4.42992145,86.379,86.341,2.49419607]
[1770684480483,4.42992145,86.379,86.34,3.43230457]
[1770684480693,4.42992145,86.379,86.32,3.43230457]
[1770684480896,4.42992145,86.369,86.317,2.49199762]
[1770684481197,4.42992145,86.359,86.304,12.93351582]
[1770684481392,4.42992145,86.349,86.3,3.43230457]
[1770684481593,4.42992145,86.349,86.291,2.49881582]
[1770684482793,4.42992145,86.349,86.294,10.4358]
[1770684483496,4.42992145,86.349,86.3,3.43230457]
[1770684483890,4.42992145,86.349,86.31,3.43230457]
[1770684484087,4.42992145,86.349,86.31,6.08091732]
[1770684485294,4.42992145,86.362,86.33,3.43230457]
[1770684486795,4.42992145,86.362,86.323,2.55023958]
[1770684490799,4.42992145,86.362,86.33,3.43230457]
[1770684491806,10.4266,86.371,86.33,3.43230457]
[1770684492506,10.4254,86.382,86.34,5.98410897]
[1770684492703,10.4254,86.382,86.35,3.43230457]
[1770684492899,4.42992145,86.381,86.341,2.5518044]
[1770684497705,4.42992145,86.412,86.37,3.43230457]
[1770684497908,4.42992145,86.412,86.361,2.58092511]
[1770684498106,3.43230457,86.42,86.36,3.43230457]
[1770684498107,4.42992145,86.409,86.36,3.43230457]
[1770684502508,4.42992145,86.409,86.36,6.0147572]
[1770684506922,4.42992145,86.409,86.361,2.47506472]
[1770684507919,4.42992145,86.409,86.319,21.35053877]
[1770684507920,4.9809087,86.429,86.38,5.89837813]
[1770684508128,4.9809087,86.429,86.381,2.46607356]
[1770684508625,4.9809087,86.429,86.39,3.43230457]
[1770684508825,4.9809087,86.419,86.37,3.43230457]
[1770684509222,4.9809087,86.419,86.371,2.45401374]
[1770684509918,4.9809087,86.419,86.38,3.43230457]
[1770684510117,4.9809087,86.419,86.371,12.88051374]
[1770684512235,4.9809087,86.419,86.38,3.43230457]
[1770684514222,4.9809087,86.419,86.371,12.88051374]
[1770684515628,4.9809087,86.419,86.38,3.43230457]
[1770684515929,4.9809087,86.439,86.39,5.96011078]
[1770684516126,4.9809087,86.439,86.391,2.52780621]
[1770684516522,4.9809087,86.439,86.393,2.53514853]
[1770684517725,4.9809087,86.437,86.38,3.42886185]
[1770684517929,4.9809087,86.429,86.381,2.52001775]
[1770684518529,4.9809087,86.429,86.38,3.42886185]
[1770684519225,4.9809087,86.429,86.378,10.4257]
[1770684519824,4.9809087,86.419,86.37,3.42886185]
[1770684520027,4.9809087,86.419,86.371,2.52742158]
[1770684520222,4.9809087,86.419,86.38,3.42886185]
[1770684522921,4.9809087,86.435,86.39,3.42886185]
[1770684523729,4.9809087,86.433,86.39,3.42886185]
[1770684523931,4.9809087,86.433,86.381,2.290952]
[1770684524132,4.9809087,86.429,86.37,3.42886185]
[1770684524326,4.9809087,86.419,86.37,3.42886185]
[1770684525323,4.9809087,86.419,86.367,2.27707241]
[1770684525533,4.9809087,86.419,86.37,3.42886185]
[1770684526033,4.9809087,86.419,86.37,5.65973861]
[1770684526630,4.9809087,86.409,86.357,2.21479121]
[1770684526826,4.9809087,86.399,86.357,2.21479121]
[1770684527020,4.9809087,86.399,86.346,2.20857406]
[1770684527231,305.88440207,86.449,86.333,2.20857406]
[1770684527232,4.9809087,86.379,86.333,2.20857406]
[1770684528225,4.9809087,86.392,86.341,2.20154997]
[1770684528534,4.9809087,86.392,86.351,2.20154997]
[1770684528934,3.42886185,86.39,86.34,3.42886185]
[1770684529122,3.42886185,86.39,86.341,2.31504883]
[1770684529324,4.9809087,86.392,86.341,2.31504883]
[1770684529835,4.9809087,86.392,86.351,2.29808378]
[1770684530330,4.75262732,86.409,86.351,2.29808378]
[1770684533125,4.75262732,86.399,86.351,2.29808378]
[1770684536630,4.75262732,86.379,86.33,3.43260783]
[1770684536830,4.75262732,86.379,86.325,2.23889948]
[1770684537931,10.67626797,86.406,86.306,2.22726308]
[1770684537932,4.75262732,86.359,86.306,2.22726308]
[1770684538132,4.75262732,86.359,86.286,21.35053877]
[1770684538133,4.75262732,86.359,86.311,2.22726308]
[1770684539146,4.75262732,86.359,86.32,3.43260783]
[1770684539933,3.43260783,86.38,86.33,3.43260783]
[1770684540243,4.75262732,86.385,86.331,2.32103318]
[1770684541631,4.75262732,86.398,86.341,2.23337]
[1770684541834,4.75262732,86.398,86.35,3.43260783]
[1770684542638,4.75262732,86.398,86.351,2.08741312]
[1770684542840,15.17622732,86.397,86.351,2.08741312]
[1770684543040,4.75262732,86.396,86.351,2.08741312]
[1770684543543,10.4238,86.395,86.351,2.08741312]
[1770684543842,4.75262732,86.394,86.351,2.08741312]
[1770684546844,3.43260783,86.39,86.34,3.43260783]
[1770684547036,4.75262732,86.379,86.33,3.43260783]
[1770684549045,4.75262732,86.379,86.305,452.6861375]
[1770684549046,4.75262732,86.369,86.32,3.43260783]
[1770684550043,4.75262732,86.368,86.313,10.4335]
[1770684551447,4.75262732,86.368,86.314,1.90266064]
[1770684552548,4.75262732,86.368,86.32,3.43260783]
[1770684552954,4.75262732,86.359,86.314,1.90266064]
[1770684553147,4.75262732,86.359,86.305,452.6861375]
[1770684553443,4.75262732,86.339,86.29,3.43260783]
[1770684553639,4.75262732,86.339,86.291,1.89365411]
[1770684561154,4.75262732,86.339,86.29,3.43260783]
[1770684561452,4.75262732,86.339,86.281,1.85951739]
[1770684562661,10.431,86.335,86.281,1.85951739]
[1770684562857,4.65829307,86.334,86.281,1.85951739]
[1770684563950,4.65829307,86.334,86.291,1.8457841]
[1770684564748,4.65829307,86.329,86.281,1.84660961]
[1770684564952,4.65829307,86.329,86.27,3.43260783]
[1770684565359,4.65829307,86.329,86.271,1.84274456]
[1770684565560,4.65829307,86.319,86.271,1.84274456]
[1770684566152,4.65829307,86.319,86.262,10.4397]
[1770684566355,4.65829307,86.319,86.27,3.43260783]
[1770684567955,4.65829307,86.309,86.26,3.43260783]
[1770684569157,14.23912248,86.378,86.234,2.01646198]
[1770684569158,4.65829307,86.321,86.281,1.8158804]
[1770684569462,4.65829307,86.321,86.28,3.43260783]
[1770684570566,4.65829307,86.321,86.234,2.01646198]
[1770684570567,4.65829307,86.319,86.26,3.43260783]
[1770684570761,4.65829307,86.309,86.26,3.43260783]
[1770684571761,4.65829307,86.307,86.26,3.43260783]
[1770684572859,4.65829307,86.304,86.26,3.43260783]
[1770684576367,4.65829307,86.302,86.26,3.43260783]
[1770684576562,4.65829307,86.302,86.26,5.06850459]
[1770684576768,4.65829307,86.302,86.26,3.43260783]
[1770684576969,4.65829307,86.302,86.25,3.43260783]
[1770684577364,4.65829307,86.3,86.25,3.43260783]
[1770684578866,4.65829307,86.298,86.25,3.44026214]
[1770684579173,4.65829307,86.298,86.148,231.76]
[1770684579174,4.65829307,86.289,86.241,1.67824508]
[1770684579375,10.4375,86.281,86.241,1.67824508]
[1770684579571,4.65829307,86.289,86.251,1.67780607]
[1770684579772,4.65829307,86.309,86.261,1.67780607]
[1770684581574,4.65829307,86.307,86.261,1.67780607]
[1770684582079,4.65829307,86.295,86.24,3.44026214]
[1770684582378,4.65829307,86.289,86.24,3.44026214]
[1770684582576,4.65829307,86.289,86.235,1.65252548]
[1770684582979,4.65829307,86.279,86.23,3.44026214]
[1770684583678,4.65829307,86.279,86.23,5.11311483]
[1770684583879,4.65829307,86.279,86.241,1.66970868]
[1770684586682,10.4363,86.291,86.25,3.44026214]
[1770684587079,15.09459307,86.291,86.25,3.44026214]
[1770684587284,4.65829307,86.29,86.25,3.44026214]
[1770684588088,4.65829307,86.29,86.251,1.55106545]
[1770684588983,4.65829307,86.302,86.26,3.44026214]
[1770684589184,4.65829307,86.302,86.27,3.44026214]
[1770684591579,4.65829307,86.302,86.27,6.214e-05]
[1770684591787,20.8603,86.342,86.148,394.3713]
[1770684591788,4.38212466,86.289,86.238,1.46617607]
[1770684592783,4.38212466,86.286,86.238,1.46617607]
[1770684593683,10.4371,86.284,86.238,1.46617607]
[1770684593888,4.38212466,86.283,86.238,1.46617607]
[1770684594386,4.38212466,86.283,86.24,3.44026214]
[1770684594881,10.4374,86.282,86.24,3.44026214]
[1770684597686,14.81952466,86.282,86.24,3.44026214]
[1770684597887,4.38212466,86.281,86.24,3.44026214]
[1770684599482,10.4376,86.28,86.24,3.44026214]
[1770684599876,4.38212466,86.281,86.24,3.44026214]
[1770684600185,4.38212466,86.281,86.225,10.4442]
[1770684600186,4.38212466,86.281,86.25,3.44026214]
[1770684601685,13.87546214,86.3,86.25,3.44026214]
[1770684601686,4.38212466,86.299,86.25,3.44026214]
[1770684602481,13.87546214,86.3,86.25,3.44026214]
[1770684602482,4.38212466,86.295,86.25,3.44026214]
[1770684602681,4.38212466,86.289,86.241,1.66905076]
[1770684604986,4.38212466,86.289,86.215,450.13649557]
[1770684604987,10.4348,86.303,86.251,1.59055653]
[1770684605189,4.38212466,86.311,86.28,3.44026214]
[1770684605589,4.38212466,86.311,86.271,1.59055653]
[1770684605984,4.38212466,86.311,86.27,3.44026214]
[1770684606887,4.38212466,86.309,86.25,3.44026214]
[1770684607381,4.38212466,86.309,86.251,1.62406181]
[1770684607583,4.38212466,86.307,86.251,1.62406181]
[1770684609088,4.38212466,86.302,86.251,1.62406181]
[1770684611294,4.38212466,86.299,86.251,1.62406181]
[1770684612387,10.4364,86.291,86.251,1.62406181]
[1770684612587,4.38212466,86.29,86.251,1.62406181]
[1770684613798,4.38212466,86.288,86.251,1.62406181]
[1770684614189,4.38212466,86.3,86.26,5.09763286]
[1770684615797,4.38212466,86.298,86.26,5.09763286]
[1770684619691,4.32010694,86.31,86.28,3.44026214]
[1770684622700,10.4326,86.321,86.281,1.54099969]
[1770684623503,4.30562424,86.32,86.281,1.54099969]
[1770684623803,4.30562424,86.318,86.281,1.54099969]
[1770684624691,4.30562424,86.318,86.28,3.44026214]
[1770684624894,4.30562424,86.318,86.27,4.93528454]
[1770684625802,4.30562424,86.316,86.27,4.93528454]
[1770684627900,4.30562424,86.316,86.28,3.44026214]
[1770684632009,4.30562424,86.316,86.271,1.42814516]
[1770684635613,4.30562424,86.316,86.26,1.31879507]
[1770684635806,4.30562424,86.316,86.26,4.75905721]
[1770684636007,4.30562424,86.316,86.261,1.30501196]
[1770684636609,4.30562424,86.316,86.27,3.44026214]
[1770684637010,4.30562424,86.316,86.27,4.72399528]
[1770684637512,4.30562424,86.316,86.271,1.28373314]
[1770684637708,4.30562424,86.316,86.234,21.35053877]
[1770684637709,4.30562424,86.316,86.28,3.44026214]
[1770684637915,4.30562424,86.327,86.28,3.44026214]
[1770684638811,4.30562424,86.327,86.284,10.437]
[1770684641616,4.30562424,86.327,86.28,3.43780047]
[1770684642118,4.30562424,86.327,86.276,1.28194015]
[1770684651624,4.1950578,86.326,86.276,1.28194015]
[1770684652325,4.1950578,86.324,86.276,1.28194015]
[1770684652718,4.19577388,86.319,86.27,3.4382024]
[1770684653821,4.19626724,86.316,86.27,3.4382024]
[1770684654429,3.4382024,86.32,86.27,3.4382024]
[1770684654430,4.19626724,86.313,86.27,3.4382024]
[1770684654721,4.19626724,86.313,86.27,4.09316243]
[1770684655126,4.19626724,86.313,86.271,0.64401915]
[1770684660941,4.18648636,86.31,86.271,0.64401915]
[1770684664837,4.18648636,86.31,86.28,3.4382024]
[1770684665329,4.20046609,86.308,86.261,0.52011588]
[1770684665538,4.20046609,86.319,86.28,3.95831828]
[1770684665832,4.20046609,86.319,86.28,0.52011588]
[1770684666942,4.14093458,86.33,86.291,0.62001906]
[1770684671642,4.14093458,86.33,86.282,10.4373]
[1770684672444,4.14093458,86.33,86.282,10.89383124]
[1770684672639,4.14093458,86.33,86.283,0.45653124]
[1770684673546,4.14093458,86.33,86.285,0.46652531]
[1770684673743,4.14093458,86.33,86.291,0.46652531]
[1770684673943,4.14093458,86.33,86.3,3.4382024]
[1770684674346,4.14093458,86.33,86.291,0.46652531]
[1770684674736,4.19200175,86.345,86.301,0.4542064]
[1770684677353,4.19200175,86.345,86.293,10.436]
[1770684678044,4.15423254,86.339,86.293,10.436]
[1770684678548,4.15423254,86.339,86.29,3.4382024]
[1770684680851,4.09417622,86.319,86.277,0.49560359]
[1770684681748,4.09417622,86.319,86.269,10.4388]
[1770684681945,4.09462814,86.309,86.265,0.57900882]
[1770684683458,4.09462814,86.309,86.244,10.4419]
[1770684683459,4.06184779,86.299,86.252,0.62899852]
[1770684686558,4.06184779,86.299,86.261,0.56804228]
[1770684687551,10.4335,86.314,86.271,0.56429552]
[1770684687755,4.07915769,86.315,86.271,0.56429552]
[1770684688563,4.11980008,86.314,86.271,0.56429552]
[1770684689460,14.55430008,86.306,86.271,0.56429552]
[1770684689648,4.11980008,86.306,86.271,0.56429552]
[1770684690655,4.11980008,86.306,86.26,3.4382024]
[1770684695863,4.11980008,86.306,86.261,0.36733452]
[1770684696060,4.14623152,86.317,86.271,0.36733452]
[1770684696365,4.14623152,86.317,86.28,3.4382024]
[1770684697354,4.14623152,86.317,86.271,0.36733452]
[1770684698169,10.4318,86.328,86.29,3.4382024]
[1770684700467,4.19373417,86.33,86.291,0.31485383]
[1770684700669,4.19373417,86.33,86.3,3.4382024]
[1770684700968,4.19373417,86.33,86.3,3.43647953]
[1770684701272,4.19373417,86.33,86.291,0.31485383]
[1770684702967,4.16282813,86.329,86.284,0.29575084]
[1770684703168,4.16282813,86.329,86.28,3.43647953]
[1770684703370,4.16282813,86.329,86.273,0.28960718]
[1770684703762,4.163136,86.326,86.273,0.28960718]
[1770684704962,4.12408309,86.324,86.273,0.28960718]
[1770684706566,4.12408309,86.324,86.28,3.43647953]
[1770684706763,4.12408309,86.324,86.29,3.43647953]
[1770684708070,4.12505982,86.336,86.291,0.33546792]
[1770684708283,4.12505982,86.336,86.3,3.43647953]
[1770684712669,4.12505982,86.336,86.291,0.33546792]
[1770684714779,4.12505982,86.336,86.293,10.436]
[1770684715380,4.12505982,86.336,86.293,10.68412194]
[1770684717589,4.12505982,86.336,86.294,0.23689644]
[1770684718488,4.12505982,86.336,86.296,10.4356]
[1770684718681,4.12505982,86.336,86.3,3.43647953]
[1770684719293,4.12505982,86.336,86.296,10.4356]
[1770684720888,4.12505982,86.336,86.306,10.4344]
[1770684721490,4.19783839,86.347,86.31,13.87037953]
[1770684721693,4.19783839,86.369,86.311,0.21471764]
[1770684722487,4.19783839,86.369,86.321,10.4326]
[1770684722992,4.19783839,86.369,86.322,0.2461872]
[1770684723396,4.19783839,86.369,86.33,3.43647953]
[1770684723995,4.19783839,86.38,86.34,3.6773723]
[1770684726100,4.19783839,86.38,86.293,14.35309324]
[1770684726101,4.19783839,86.38,86.35,3.43647953]
[1770684730304,4.19783839,86.38,86.351,10.429]
[1770684730499,4.19783839,86.38,86.292,14.35309324]
[1770684730500,4.44129929,86.41,86.37,3.43647953]
[1770684730707,4.44129929,86.41,86.38,3.43647953]
[1770684731399,3.43647953,86.44,86.38,3.43647953]
[1770684731705,3.43647953,86.44,86.38,7.44592529]
[1770684732304,3.43647953,86.44,86.381,10.4253]
[1770684733396,4.19783839,86.439,86.382,3.97573213]
[1770684735209,4.19783839,86.439,86.386,14.40406629]
[1770684736510,4.19783839,86.439,86.4,3.43647953]
[1770684736805,4.19783839,86.439,86.395,3.97507912]
[1770684737108,4.19783839,86.439,86.4,3.43647953]
[1770684737301,4.19783839,86.439,86.401,3.97144201]
[1770684737709,4.19783839,86.439,86.395,3.97130586]
[1770684737909,4.19783839,86.439,86.4,3.43647953]
[1770684739011,4.19783839,86.439,86.396,10.4235]
[1770684740009,4.19783839,86.439,86.4,3.43647953]
[1770684741911,4.19783839,86.439,86.401,4.03143845]
[1770684742209,4.19783839,86.439,86.388,4.02765733]
[1770684742415,4.10629768,86.429,86.377,4.02765733]
[1770684742716,314.64646636,86.481,86.354,10.4286]
[1770684742717,4.10629768,86.409,86.354,10.4286]
[1770684742907,4.10629768,86.409,86.304,20.8694]
[1770684742908,4.10629768,86.399,86.331,11.5497177]
[1770684743105,4.10629768,86.389,86.34,3.43647953]
[1770684744411,4.10629768,86.389,86.352,10.4288]
[1770684744714,4.10629768,86.429,86.381,3.83939833]
[1770684744908,4.10629768,86.429,86.39,3.43647953]
[1770684745214,4.10629768,86.429,86.391,10.4241]
[1770684745408,4.10629768,86.429,86.381,3.83939833]
[1770684745609,4.10629768,86.419,86.37,3.43647953]
[1770684746312,161.9579,86.496,86.39,7.26853476]
[1770684746313,4.10629768,86.439,86.39,7.26853476]
[1770684746513,4.10629768,86.439,86.391,3.83205523]
[1770684748815,4.10629768,86.439,86.392,10.424]
[1770684750415,4.10629768,86.439,86.393,3.66183171]
[1770684750722,4.10629768,86.459,86.41,3.43647953]
[1770684751323,4.10629768,86.439,86.401,10.4229]
[1770684751709,4.10629768,86.439,86.39,3.43647953]
[1770684753519,4.10629768,86.439,86.39,6.84948931]
[1770684755522,4.10629768,86.439,86.387,10.4245]
[1770684755723,4.10629768,86.429,86.378,3.40706554]
[1770684756025,4.10629768,86.419,86.378,3.40706554]
[1770684756823,4.10629768,86.419,86.379,10.4256]
[1770684757420,4.10629768,86.419,86.382,3.41063314]
[1770684758728,4.10629768,86.419,86.39,3.43647953]
[1770684759129,4.10629768,86.439,86.39,13.86077953]
[1770684759721,4.10629768,86.439,86.39,3.43647953]
[1770684760725,4.10629768,86.439,86.391,3.35912237]
[1770684761129,4.10629768,86.439,86.4,3.43647953]
[1770684761729,4.10629768,86.439,86.391,3.35912237]
[1770684763529,4.10629768,86.439,86.39,3.42861935]
[1770684763830,314.64646636,86.481,86.337,34.79]
[1770684763831,4.10629768,86.419,86.37,3.42861935]
[1770684764033,4.10629768,86.419,86.371,3.29855247]
[1770684764223,4.10629768,86.419,86.381,3.29855247]
[1770684764930,4.10629768,86.431,86.391,3.36732781]
[1770684765830,4.10629768,86.431,86.389,10.4244]
[1770684766039,4.10629768,86.429,86.378,3.36450596]
[1770684766329,4.10629768,86.419,86.37,13.85531935]
[1770684768129,4.10629768,86.419,86.371,3.34916973]
[1770684768331,4.10629768,86.431,86.381,3.34916973]
[1770684768533,3.42861935,86.43,86.381,3.34916973]
[1770684768734,4.10629768,86.429,86.371,3.29922284]
[1770684769739,4.10629768,86.429,86.382,10.4252]
[1770684775343,3.80882946,86.399,86.357,3.23508502]
[1770684777140,3.80882946,86.396,86.357,3.23508502]
[1770684778447,3.80882946,86.413,86.361,3.28875984]
[1770684779341,3.80882946,86.413,86.37,3.42999622]
[1770684779742,3.80882946,86.412,86.37,3.42999622]
[1770684780746,14.23112946,86.407,86.37,3.42999622]
[1770684781046,3.80882946,86.406,86.37,3.42999622]
[1770684782751,3.80882946,86.406,86.38,3.42999622]
[1770684783042,10.4211,86.417,86.38,3.42999622]
[1770684783244,14.22992946,86.417,86.38,3.42999622]
[1770684783437,3.80882946,86.416,86.38,3.42999622]
[1770684784547,10.42,86.426,86.39,3.42999622]
[1770684784842,14.22882946,86.426,86.39,3.42999622]
[1770684785048,14.22932946,86.422,86.39,3.42999622]
[1770684785544,10.4208,86.42,86.39,3.42999622]
[1770684785847,10.4208,86.42,86.38,3.42999622]
[1770684785848,3.80882946,86.419,86.38,3.42999622]
[1770684789354,10.4196,86.429,86.39,3.42999622]
[1770684789548,3.80882946,86.428,86.39,3.42999622]
[1770684790452,3.80882946,86.428,86.4,3.42999622]
[1770684793445,3.80882946,86.445,86.41,3.42999622]
[1770684794454,10.4164,86.456,86.42,3.42999622]
[1770684794958,3.80882946,86.455,86.42,3.42999622]
[1770684799363,3.80882946,86.455,86.43,3.42999622]
[1770684801061,3.80882946,86.455,86.42,3.42999622]
[1770684806466,3.80882946,86.455,86.41,3.42999622]
[1770684807467,4.06613971,86.467,86.43,3.42999622]
[1770684807670,4.06613971,86.48,86.45,3.42999622]
[1770684808061,4.06613971,86.5,86.46,3.42999622]
[1770684811570,4.06613971,86.5,86.47,3.42999622]
[1770684812269,10.4097,86.512,86.47,3.42999622]
[1770684812461,4.06613971,86.511,86.48,3.42999622]
[1770684812870,4.06613971,86.511,86.471,2.91218599]
[1770684813070,4.06613971,86.511,86.47,3.42999622]
[1770684815075,4.06613971,86.511,86.48,3.42999622]
[1770684815379,4.06613971,86.525,86.48,3.42999622]
[1770684815567,4.06613971,86.525,86.49,3.42999622]
[1770684815870,4.06613971,86.523,86.48,3.42999622]
[1770684817374,4.06613971,86.52,86.47,3.42999622]
[1770684818664,4.06613971,86.518,86.47,3.42999622]
[1770684819665,10.4091,86.516,86.47,3.42999622]
[1770684819976,4.06613971,86.515,86.47,3.42999622]
[1770684822969,4.06613971,86.515,86.47,3.42280044]
[1770684823372,4.06613971,86.513,86.47,3.42280044]
[1770684823671,4.06613971,86.513,86.46,3.42280044]
[1770684824268,4.06613971,86.513,86.461,2.85501442]
[1770684824680,10.4096,86.512,86.461,2.85501442]
[1770684824979,4.06613971,86.511,86.461,2.85501442]
[1770684825980,4.06613971,86.511,86.471,2.92006896]
[1770684826176,10.4084,86.522,86.481,2.92006896]
[1770684826476,14.47453971,86.522,86.49,3.42280044]
[1770684826978,14.47453971,86.522,86.481,2.92006896]
[1770684827983,10.4088,86.519,86.481,2.92006896]
[1770684828785,14.47493971,86.519,86.481,2.92006896]
[1770684830183,10.4091,86.517,86.481,2.92006896]
[1770684831389,14.30886854,86.517,86.481,2.92006896]
[1770684831687,3.89976854,86.516,86.481,2.92006896]
[1770684833592,3.89976854,86.509,86.457,2.83251343]
[1770684834392,3.89976854,86.509,86.46,6.25416088]
[1770684834782,10.4113,86.498,86.461,2.82928047]
[1770684834987,3.89976854,86.509,86.48,3.42280044]
[1770684835289,3.89976854,86.529,86.48,6.25084785]
[1770684836789,3.89976854,86.517,86.48,3.42280044]
[1770684840586,10.4078,86.528,86.481,2.8382429]
[1770684840789,10.4078,86.528,86.425,14.35309324]
[1770684840790,3.89976854,86.54,86.501,2.79639844]
[1770684841185,3.89976854,86.54,86.51,3.42280044]
[1770684841391,14.36587683,86.594,86.51,3.42280044]
[1770684841392,3.89976854,86.552,86.511,2.79524795]
[1770684844401,10.404,86.559,86.53,3.42280044]
[1770684845198,14.30396854,86.557,86.521,2.74863093]
[1770684845397,3.89976854,86.556,86.504,2.7205595]
[1770684845799,3.89976854,86.545,86.504,2.7205595]
[1770684846005,3.89976854,86.539,86.49,3.42280044]
[1770684846199,3.89976854,86.529,86.47,6.14236949]
[1770684846401,3.89976854,86.529,86.471,2.71956905]
[1770684847704,3.42280044,86.53,86.471,2.71956905]
[1770684847705,3.89976854,86.521,86.471,2.71956905]
[1770684848207,3.42280044,86.52,86.471,2.71956905]
[1770684848502,4.04459655,86.509,86.441,10.4181]
[1770684848803,4.04459655,86.509,86.46,3.42280044]
[1770684849304,4.03144207,86.499,86.441,10.4181]
[1770684850004,10.4127,86.487,86.44,3.42280044]
[1770684850399,10.4127,86.487,86.441,0.11193362]
[1770684850996,10.4127,86.487,86.45,3.52132439]
[1770684851191,10.4127,86.487,86.451,0.09852395]
[1770684851393,14.44264207,86.499,86.451,0.09852395]
[1770684852699,4.03951462,86.498,86.451,0.09852395]
[1770684853101,4.03951462,86.498,86.437,0.09267249]
[1770684853311,4.03951462,86.485,86.441,0.09267249]
[1770684853607,4.03951462,86.485,86.45,3.42280044]
[1770684854103,4.03947718,86.498,86.45,3.42280044]
[1770684854698,4.01794148,86.495,86.45,3.42280044]
[1770684855005,4.01794148,86.495,86.45,3.47242218]
[1770684855412,10.4101,86.508,86.461,0.04962174]
[1770684855604,4.01794148,86.507,86.461,0.04962174]
[1770684856104,10.4104,86.506,86.442,0.04962174]
[1770684856305,4.01794148,86.499,86.45,3.42280044]
[1770684857505,4.02919464,86.489,86.43,3.42280044]
[1770684857711,4.02919464,86.489,86.431,0.02711542]
[1770684857905,3.42280044,86.48,86.431,0.02711542]
[1770684858113,4.02919464,86.489,86.431,0.02711542]
[1770684858313,4.02919464,86.489,86.441,0.02711542]
[1770684858612,4.02919464,86.489,86.45,3.42280044]
[1770684859416,4.02919464,86.489,86.441,0.02711542]
[1770684860518,4.03923514,86.479,86.432,10.4191]
[1770684861720,4.03923514,86.479,86.43,3.42280044]
[1770684862122,4.03923514,86.479,86.431,0.05380966]
[1770684864131,4.03923514,86.479,86.44,3.42280044]
[1770684864925,4.00223927,86.469,86.416,0.07854945]
[1770684865126,4.00223927,86.459,86.416,0.07854945]
[1770684865328,4.00223927,86.459,86.41,3.42280044]
[1770684866030,4.00223927,86.457,86.41,3.42280044]
[1770684866833,10.4161,86.458,86.403,0.07854945]
[1770684866834,3.96023702,86.453,86.403,0.07854945]
[1770684868035,7.38303746,86.45,86.403,0.07854945]
[1770684868226,3.96023702,86.449,86.403,0.07854945]
[1770684869627,3.96023702,86.449,86.41,3.42280044]
[1770684871433,3.96193836,86.447,86.41,3.42280044]
[1770684871736,3.96193836,86.447,86.403,0.07854945]
[1770684871937,3.96193836,86.447,86.41,3.42280044]
[1770684873233,10.4173,86.448,86.42,3.42280044]
[1770684874432,3.95084124,86.447,86.4,3.42280044]
[1770684874835,3.95108855,86.439,86.39,3.42280044]
[1770684875838,3.95108855,86.437,86.39,3.42280044]
[1770684876434,3.95108855,86.434,86.386,0.18085089]
[1770684876737,3.95108855,86.434,86.39,3.42280044]
[1770684876932,3.956017,86.431,86.39,3.42280044]
[1770684877535,3.956017,86.431,86.38,3.42280044]
[1770684877739,3.956017,86.429,86.38,3.59379443]
[1770684877932,3.956017,86.429,86.381,0.17099399]
[1770684878832,3.42280044,86.44,86.381,0.17099399]
[1770684879034,14.37103077,86.442,86.4,3.5997669]
[1770684879438,3.95303077,86.439,86.4,3.5997669]
[1770684883241,3.42280044,86.45,86.39,3.42280044]
[1770684883242,4.03414881,86.437,86.39,3.42280044]
[1770684884235,4.03414881,86.437,86.38,3.42280044]
[1770684884742,4.02432088,86.435,86.38,3.45718667]
[1770684885049,4.02432088,86.435,86.39,3.42950091]
[1770684885643,10.4191,86.433,86.401,0.03438623]
[1770684889745,14.34564796,86.442,86.401,0.03438623]
[1770684889943,113.66781,86.689,86.41,3.83836157]
[1770684889944,3.92764796,86.453,86.41,3.83836157]
[1770684890544,3.92764796,86.45,86.41,3.83836157]
[1770684891844,3.92764796,86.446,86.4,3.42847761]
[1770684893242,3.92764796,86.444,86.39,3.42847761]
[1770684893843,3.92764796,86.429,86.39,3.42847761]
[1770684895952,3.92764796,86.427,86.39,3.42847761]
[1770684897154,3.92764796,86.427,86.38,3.42847761]
[1770684897650,3.92764796,86.419,86.37,3.86254798]
[1770684898751,3.92764796,86.413,86.37,3.86254798]
[1770684899854,10.4222,86.408,86.37,3.86254798]
[1770684900254,14.34984796,86.408,86.37,3.86254798]
[1770684900458,3.92764796,86.405,86.37,3.42847761]
[1770684901859,3.92764796,86.439,86.38,3.42847761]
[1770684902755,3.92764796,86.425,86.38,3.42847761]
[1770684903753,3.92764796,86.42,86.38,3.42847761]
[1770684904758,10.4211,86.417,86.38,3.42847761]
[1770684906963,3.92764796,86.432,86.41,3.42847761]
[1770684907460,3.92764796,86.462,86.421,0.35216315]
[1770684908057,3.92764796,86.462,86.42,3.42847761]